fUST/lending_fUST_20251216
["ID","MTS","AMOUNT","RATE_DAILY","PERIOD"]
[398595872,1765858243444,-628.28,0.00010958,2]
[398595874,1765858243453,-500.0,0.00010958,2]
[398595876,1765858243462,-500.0,0.00010958,2]
[398595878,1765858243472,-500.0,0.00010958,2]
[398595880,1765858243481,-500.0,0.00010958,2]
[398595882,1765858243490,-501.80876234,0.00010958,2]
[398595884,1765858243499,-500.0,0.00010958,2]
[398595886,1765858243512,-639.96,0.00010958,2]
[398595888,1765858243521,-500.0,0.00010958,2]
[398595890,1765858243531,-500.0,0.00010958,2]
[398595892,1765858243540,-500.0,0.00010958,2]
[398595894,1765858243550,-500.0,0.00010958,2]
[398595896,1765858243560,-291.78649388,0.00010958,2]
[398595898,1765858243569,-500.0,0.00010959,2]
[398595900,1765858243578,-500.0,0.00010959,2]
[398595902,1765858243589,-500.0,0.00010959,2]
[398595904,1765858243598,-500.0,0.00010959,2]
[398595906,1765858243608,-500.0,0.00010959,2]
[398595908,1765858243617,-500.0,0.00010959,2]
[398595910,1765858243626,-500.0,0.00010959,2]
[398595912,1765858243635,-500.0,0.00010959,2]
[398595914,1765858243644,-500.0,0.00010959,2]
[398595916,1765858243654,-500.0,0.00010959,2]
[398595918,1765858243663,-500.0,0.00010959,2]
[398595920,1765858243672,-500.0,0.00010959,2]
[398595922,1765858243681,-500.0,0.00010959,2]
[398595924,1765858243691,-500.0,0.00010959,2]
[398595926,1765858243700,-500.0,0.00010959,2]
[398595928,1765858243709,-500.0,0.00010959,2]
[398595930,1765858243718,-500.0,0.00010959,2]
[398595932,1765858243727,-500.0,0.00010959,2]
[398595934,1765858243737,-1167.7314533,0.00010959,2]
[398595936,1765858243747,-1167.7314533,0.00010959,2]
[398595938,1765858243755,-1167.7314533,0.00010959,2]
[398595940,1765858243765,-1167.7314533,0.00010959,2]
[398595942,1765858243775,-1167.7314533,0.00010959,2]
[398595944,1765858243784,-1167.7314533,0.00010959,2]
[398595946,1765858243793,-1167.7314533,0.00010959,2]
[398595948,1765858243802,-1167.7314533,0.00010959,2]
[398595950,1765858243811,-1167.7314533,0.00010959,2]
[398595952,1765858243820,-1167.7314533,0.00010959,2]
[398595955,1765858243834,-1167.7314533,0.00010959,2]
[398595957,1765858243842,-1167.7314533,0.00010959,2]
[398595959,1765858243851,-1167.7314533,0.00010959,2]
[398595961,1765858243860,-1167.7314533,0.00010959,2]
[398595963,1765858243869,-1167.7314533,0.00010959,2]
[398595964,1765858243880,-1167.7314533,0.00010959,2]
[398595966,1765858243889,-1167.7314533,0.00010959,2]
[398595968,1765858243898,-1167.7314533,0.00010959,2]
[398595970,1765858243907,-1167.7314533,0.00010959,2]
[398595971,1765858243916,-1167.7314533,0.00010959,2]
[398595972,1765858243925,-1167.7314533,0.00010959,2]
[398595973,1765858243934,-1167.7314533,0.00010959,2]
[398595974,1765858243944,-1167.7314533,0.00010959,2]
[398595975,1765858243953,-1167.7314533,0.00010959,2]
[398595976,1765858243963,-1167.7314533,0.00010959,2]
[398595977,1765858243972,-1167.7314533,0.00010959,2]
[398595978,1765858243982,-151.0,0.00011,2]
[398595979,1765858243991,-150.0,0.00011095,2]
[398595980,1765858244001,-151.0,0.000111,2]
[398595981,1765858244010,-150.0,0.00011232,2]
[398595982,1765858244019,-500.0,0.00011232,2]
[398595983,1765858244029,-500.0,0.00011232,2]
[398595984,1765858244038,-500.0,0.00011232,2]
[398595985,1765858244048,-500.0,0.00011232,2]
[398595986,1765858244106,-486.37,0.00011232,2]
[398595987,1765858244116,-458.7,0.00011232,2]
[398595988,1765858244126,-500.0,0.00011232,2]
[398595989,1765858244135,-500.0,0.00011232,2]
[398595990,1765858244145,-164.99,0.00011232,2]
[398595991,1765858244155,-1023.62,0.00011232,2]
[398595992,1765858244164,-456.52,0.00011232,2]
[398595993,1765858244174,-431.06,0.00011232,2]
[398595994,1765858244183,-500.0,0.00011232,2]
[398595995,1765858244192,-203.23,0.00011232,2]
[398595996,1765858244202,-500.0,0.00011232,2]
[398595997,1765858244211,-208.22,0.00011232,2]
[398595998,1765858244220,-500.0,0.00011232,2]
[398595999,1765858244230,-561.84,0.00011232,2]
[398596000,1765858244239,-210.51,0.00011232,2]
[398596001,1765858244248,-449.34,0.00011232,2]
[398596002,1765858244257,-1163.13,0.00011232,2]
[398596003,1765858244266,-500.0,0.00011232,2]
[398596004,1765858244275,-500.0,0.00011232,2]
[398596005,1765858244284,-500.0,0.00011232,2]
[398596006,1765858244293,-500.82,0.00011232,2]
[398596007,1765858244302,-282.79297101,0.00011232,2]
[398596008,1765858244310,-206.23,0.00011232,2]
[398596009,1765858244319,-281.89,0.00011232,2]
[398596010,1765858244327,-333.85,0.00011232,2]
[398596011,1765858244336,-500.0,0.00011232,2]
[398596012,1765858244344,-500.0,0.00011232,2]
[398596013,1765858244353,-500.0,0.00011232,2]
[398596014,1765858244362,-500.0,0.00011232,2]
[398596015,1765858244370,-204.53,0.00011232,2]
[398596016,1765858244379,-1012.31,0.00011232,2]
[398596017,1765858244388,-153.17,0.00011232,2]
[398596018,1765858244397,-269.24,0.00011232,2]
[398596019,1765858244405,-500.0,0.00011232,2]
[398596020,1765858244414,-500.0,0.00011232,2]
[398596021,1765858244423,-220.24,0.00011232,2]
[398596022,1765858244432,-500.0,0.00011232,2]
[398596023,1765858244441,-500.0,0.00011232,2]
[398596024,1765858244449,-494.04,0.00011232,2]
[398596025,1765858244458,-500.0,0.00011232,2]
[398596026,1765858244467,-224.32,0.00011232,2]
[398596027,1765858244475,-580.82,0.00011232,2]
[398596028,1765858244484,-500.0,0.00011232,2]
[398596029,1765858244492,-200.55,0.00011232,2]
[398596030,1765858244501,-500.0,0.00011232,2]
[398596031,1765858244514,-322.32,0.00011232,2]
[398596032,1765858244523,-158.94,0.00011232,2]
[398596033,1765858244532,-500.0,0.00011232,2]
[398596034,1765858244541,-500.0,0.00011232,2]
[398596035,1765858244551,-500.0,0.00011232,2]
[398596036,1765858244560,-597.97331682,0.00011232,2]
[398596037,1765858244569,-500.0,0.00011232,2]
[398596038,1765858244578,-210.01,0.00011232,2]
[398596039,1765858244591,-500.0,0.00011232,2]
[398596040,1765858244600,-241.08,0.00011232,2]
[398596041,1765858244609,-500.0,0.00011232,2]
[398596042,1765858244618,-500.0,0.00011232,2]
[398596043,1765858244626,-500.0,0.00011232,2]
[398596044,1765858244635,-1010.67,0.00011232,2]
[398596045,1765858244644,-452.47,0.00011232,2]
[398596046,1765858244653,-486.85,0.00011232,2]
[398596047,1765858244663,-500.0,0.00011232,2]
[398596048,1765858244672,-500.0,0.00011232,2]
[398596049,1765858244681,-500.0,0.00011232,2]
[398596050,1765858244691,-500.0,0.00011232,2]
[398596051,1765858244700,-6987.84,0.00011232,2]
[398596052,1765858244708,-500.0,0.00011232,2]
[398596053,1765858244717,-550.16,0.00011232,2]
[398596054,1765858244726,-287.39,0.00011232,2]
[398596055,1765858244736,-476.14,0.00011232,2]
[398596056,1765858244745,-176.13,0.00011232,2]
[398596057,1765858244754,-500.0,0.00011232,2]
[398596058,1765858244762,-547.81,0.00011232,2]
[398596059,1765858244772,-500.0,0.00011232,2]
[398596060,1765858244780,-1457.49,0.00011232,2]
[398596061,1765858244789,-632.49,0.00011232,2]
[398596062,1765858244799,-500.0,0.00011232,2]
[398596063,1765858244808,-226.43,0.00011232,2]
[398596064,1765858244818,-500.0,0.00011232,2]
[398596065,1765858244827,-500.0,0.00011232,2]
[398596066,1765858244836,-257.62,0.00011232,2]
[398596067,1765858244845,-219.97,0.00011232,2]
[398596068,1765858244854,-500.0,0.00011232,2]
[398596069,1765858244863,-500.0,0.00011232,2]
[398596070,1765858244872,-1647.99,0.00011232,2]
[398596071,1765858244881,-258.75,0.00011232,2]
[398596072,1765858244890,-563.56,0.00011232,2]
[398596073,1765858244899,-500.0,0.00011232,2]
[398596074,1765858244907,-500.0,0.00011232,2]
[398596075,1765858244916,-500.0,0.00011232,2]
[398596076,1765858244925,-538.86,0.00011232,2]
[398596077,1765858244934,-558.09,0.00011232,2]
[398596078,1765858244943,-500.0,0.00011232,2]
[398596079,1765858244952,-500.0,0.00011232,2]
[398596080,1765858244962,-1209.57,0.00011232,2]
[398596081,1765858244970,-209.76240802,0.00011232,2]
[398596082,1765858244979,-154.43,0.00011232,2]
[398596083,1765858244988,-913.75,0.00011232,2]
[398596084,1765858244997,-2083.05,0.00011232,2]
[398596085,1765858245006,-500.0,0.00011232,2]
[398596086,1765858245016,-500.0,0.00011232,2]
[398596087,1765858245025,-500.0,0.00011232,2]
[398596088,1765858245034,-537.04,0.00011232,2]
[398596089,1765858245043,-467.74,0.00011232,2]
[398596090,1765858245052,-500.0,0.00011232,2]
[398596091,1765858245061,-1615.34,0.00011232,2]
[398596092,1765858245071,-500.0,0.00011232,2]
[398596093,1765858245079,-500.0,0.00011232,2]
[398596094,1765858245090,-646.34,0.00011232,2]
[398596095,1765858245099,-1745.47,0.00011232,2]
[398596096,1765858245107,-202.53,0.00011232,2]
[398596097,1765858245116,-500.0,0.00011232,2]
[398596098,1765858245126,-336.35,0.00011232,2]
[398596099,1765858245135,-500.0,0.00011232,2]
[398596100,1765858245144,-500.0,0.00011232,2]
[398596101,1765858245153,-2220.91,0.00011232,2]
[398596102,1765858245162,-500.0,0.00011232,2]
[398596103,1765858245171,-2239.83,0.00011232,2]
[398596104,1765858245180,-192.69,0.00011232,2]
[398596105,1765858245189,-960.12,0.00011232,2]
[398596106,1765858245198,-319.01,0.00011232,2]
[398596107,1765858245208,-500.0,0.00011232,2]
[398596108,1765858245217,-500.0,0.00011232,2]
[398596109,1765858245226,-330.94,0.00011232,2]
[398596110,1765858245235,-500.0,0.00011232,2]
[398596111,1765858245244,-500.0,0.00011232,2]
[398596112,1765858245253,-903.33,0.00011232,2]
[398596113,1765858245262,-302.03,0.00011232,2]
[398596114,1765858245271,-500.0,0.00011232,2]
[398596115,1765858245280,-500.0,0.00011232,2]
[398596116,1765858245289,-588.32,0.00011232,2]
[398596117,1765858245298,-2133.64,0.00011232,2]
[398596118,1765858245308,-500.0,0.00011232,2]
[398596119,1765858245318,-520.85,0.00011232,2]
[398596120,1765858245327,-500.0,0.00011232,2]
[398596121,1765858245336,-500.0,0.00011232,2]
[398596122,1765858245345,-500.0,0.00011232,2]
[398596123,1765858245355,-191.53,0.00011232,2]
[398596124,1765858245364,-779.15,0.00011232,2]
[398596125,1765858245373,-500.0,0.00011232,2]
[398596126,1765858245381,-500.0,0.00011232,2]
[398596127,1765858245391,-500.0,0.00011232,2]
[398596128,1765858245400,-332.86,0.00011232,2]
[398596129,1765858245410,-619.1,0.00011232,2]
[398596130,1765858245419,-500.0,0.00011232,2]
[398596131,1765858245428,-528.41,0.00011232,2]
[398596132,1765858245437,-233.89,0.00011232,2]
[398596133,1765858245446,-366.66,0.00011232,2]
[398596134,1765858245456,-500.0,0.00011232,2]
[398596135,1765858245465,-500.0,0.00011232,2]
[398596136,1765858245475,-618.24736419,0.00011232,2]
[398596137,1765858245484,-500.0,0.00011232,2]
[398596138,1765858245494,-596.79,0.00011232,2]
[398596139,1765858245506,-238.64,0.00011232,2]
[398596140,1765858245521,-500.0,0.00011232,2]
[398596141,1765858245531,-500.0,0.00011232,2]
[398596142,1765858245541,-500.0,0.00011232,2]
[398596143,1765858245551,-500.0,0.00011232,2]
[398596144,1765858245560,-500.0,0.00011232,2]
[398596145,1765858245570,-1758.6,0.00011232,2]
[398596146,1765858245579,-2122.58,0.00011232,2]
[398596147,1765858245591,-161.23,0.00011232,2]
[398596148,1765858245600,-400.86,0.00011232,2]
[398596149,1765858245610,-500.0,0.00011232,2]
[398596150,1765858245619,-520.58,0.00011232,2]
[398596151,1765858245628,-430.57,0.00011232,2]
[398596152,1765858245637,-500.0,0.00011232,2]
[398596153,1765858245647,-500.0,0.00011232,2]
[398596154,1765858245657,-500.0,0.00011232,2]
[398596155,1765858245666,-500.0,0.00011232,2]
[398596156,1765858245676,-639.46,0.00011232,2]
[398596157,1765858245685,-500.0,0.00011232,2]
[398596158,1765858245694,-300.15,0.00011232,2]
[398596159,1765858245703,-500.0,0.00011232,2]
[398596160,1765858245713,-500.0,0.00011232,2]
[398596161,1765858245722,-987.23,0.00011232,2]
[398596162,1765858245731,-207.92,0.00011232,2]
[398596163,1765858245740,-500.0,0.00011232,2]
[398596164,1765858245750,-500.0,0.00011232,2]
[398596165,1765858245760,-2916.81,0.00011232,2]
[398596166,1765858245769,-436.46,0.00011232,2]
[398596167,1765858245778,-7688.55,0.00011232,2]
[398596168,1765858245787,-1704.4,0.00011232,2]
[398596169,1765858245796,-500.0,0.00011232,2]
[398596170,1765858245805,-500.0,0.00011232,2]
[398596171,1765858245814,-531.35,0.00011232,2]
[398596172,1765858245824,-500.0,0.00011232,2]
[398596173,1765858245833,-500.0,0.00011232,2]
[398596174,1765858245842,-500.0,0.00011232,2]
[398596175,1765858245851,-754.28,0.00011232,2]
[398596176,1765858245860,-500.0,0.00011232,2]
[398596177,1765858245869,-19522.16,0.00011232,2]
[398596178,1765858245878,-538.72,0.00011232,2]
[398596179,1765858245888,-500.0,0.00011232,2]
[398596180,1765858245897,-1822.71,0.00011232,2]
[398596181,1765858245906,-500.0,0.00011232,2]
[398596182,1765858245915,-500.0,0.00011232,2]
[398596183,1765858245923,-572.09,0.00011232,2]
[398596184,1765858245932,-500.0,0.00011232,2]
[398596185,1765858245941,-449.97,0.00011232,2]
[398596186,1765858245950,-151.0,0.000113,2]
[398596187,1765858245959,-151.0,0.000113,2]
[398596188,1765858245968,-198.44786194,0.00011369,2]
[398596189,1765858245978,-420.0,0.00011376,2]
[398596190,1765858245987,-151.0,0.000114,2]
[398596191,1765858245996,-151.0,0.000115,2]
[398596192,1765858246005,-151.0,0.000115,2]
[398596193,1765858246014,-500.0,0.00011506,2]
[398596194,1765858246023,-500.0,0.00011506,2]
[398596195,1765858246033,-500.0,0.00011506,2]
[398596196,1765858246042,-500.0,0.00011506,2]
[398596197,1765858246051,-288.05,0.00011506,2]
[398596198,1765858246061,-320.61,0.00011506,2]
[398596199,1765858246069,-1023.62,0.00011506,2]
[398596200,1765858246078,-500.0,0.00011506,2]
[398596201,1765858246087,-182.86,0.00011506,2]
[398596202,1765858246097,-500.0,0.00011506,2]
[398596203,1765858246105,-561.84,0.00011506,2]
[398596204,1765858246115,-1163.13,0.00011506,2]
[398596205,1765858246124,-500.0,0.00011506,2]
[398596206,1765858246133,-373.08,0.00011506,2]
[398596208,1765858246142,-500.0,0.00011506,2]
[398596209,1765858246151,-500.82,0.00011506,2]
[398596211,1765858246160,-500.0,0.00011506,2]
[398596213,1765858246169,-500.0,0.00011506,2]
[398596214,1765858246177,-154.2,0.00011506,2]
[398596216,1765858246186,-500.0,0.00011506,2]
[398596218,1765858246196,-1012.31,0.00011506,2]
[398596220,1765858246205,-368.45,0.00011506,2]
[398596222,1765858246214,-500.0,0.00011506,2]
[398596224,1765858246222,-500.0,0.00011506,2]
[398596226,1765858246231,-393.15,0.00011506,2]
[398596228,1765858246240,-500.0,0.00011506,2]
[398596230,1765858246249,-500.0,0.00011506,2]
[398596232,1765858246259,-500.0,0.00011506,2]
[398596234,1765858246269,-500.0,0.00011506,2]
[398596236,1765858246278,-500.0,0.00011506,2]
[398596238,1765858246287,-221.84,0.00011506,2]
[398596240,1765858246296,-500.0,0.00011506,2]
[398596242,1765858246305,-500.0,0.00011506,2]
[398596244,1765858246314,-500.0,0.00011506,2]
[398596246,1765858246323,-500.0,0.00011506,2]
[398596248,1765858246333,-300.68,0.00011506,2]
[398596250,1765858246341,-1010.67,0.00011506,2]
[398596252,1765858246351,-500.0,0.00011506,2]
[398596254,1765858246360,-195.56,0.00011506,2]
[398596256,1765858246369,-500.0,0.00011506,2]
[398596258,1765858246378,-500.0,0.00011506,2]
[398596260,1765858246387,-6987.84,0.00011506,2]
[398596262,1765858246396,-505.56,0.00011506,2]
[398596264,1765858246405,-500.0,0.00011506,2]
[398596265,1765858246414,-500.0,0.00011506,2]
[398596266,1765858246423,-1457.49,0.00011506,2]
[398596267,1765858246433,-500.0,0.00011506,2]
[398596268,1765858246442,-500.0,0.00011506,2]
[398596270,1765858246451,-500.0,0.00011506,2]
[398596272,1765858246460,-538.6768041,0.00011506,2]
[398596273,1765858246468,-500.0,0.00011506,2]
[398596274,1765858246478,-1647.99,0.00011506,2]
[398596275,1765858246486,-500.0,0.00011506,2]
[398596276,1765858246495,-390.21,0.00011506,2]
[398596277,1765858246505,-500.0,0.00011506,2]
[398596278,1765858246516,-558.09,0.00011506,2]
[398596279,1765858246526,-515.06,0.00011506,2]
[398596280,1765858246535,-500.0,0.00011506,2]
[398596281,1765858246544,-1209.57,0.00011506,2]
[398596282,1765858246554,-913.75,0.00011506,2]
[398596283,1765858246563,-2083.05,0.00011506,2]
[398596284,1765858246572,-500.0,0.00011506,2]
[398596285,1765858246581,-500.0,0.00011506,2]
[398596286,1765858246591,-208.21,0.00011506,2]
[398596287,1765858246600,-294.65,0.00011506,2]
[398596288,1765858246609,-1615.34,0.00011506,2]
[398596289,1765858246618,-500.0,0.00011506,2]
[398596291,1765858246627,-319.86,0.00011506,2]
[398596293,1765858246636,-646.34,0.00011506,2]
[398596294,1765858246645,-1745.47,0.00011506,2]
[398596295,1765858246654,-500.0,0.00011506,2]
[398596296,1765858246663,-500.0,0.00011506,2]
[398596297,1765858246671,-500.0,0.00011506,2]
[398596298,1765858246681,-2220.91,0.00011506,2]
[398596299,1765858246690,-500.0,0.00011506,2]
[398596300,1765858246699,-2239.83,0.00011506,2]
[398596301,1765858246708,-960.12,0.00011506,2]
[398596302,1765858246717,-543.67,0.00011506,2]
[398596303,1765858246726,-277.72,0.00011506,2]
[398596304,1765858246735,-500.0,0.00011506,2]
[398596305,1765858246744,-533.85,0.00011506,2]
[398596306,1765858246753,-903.33,0.00011506,2]
[398596307,1765858246762,-500.0,0.00011506,2]
[398596308,1765858246771,-457.11,0.00011506,2]
[398596309,1765858246780,-2133.64,0.00011506,2]
[398596310,1765858246789,-500.0,0.00011506,2]
[398596311,1765858246797,-520.85,0.00011506,2]
[398596312,1765858246806,-500.0,0.00011506,2]
[398596313,1765858246816,-500.0,0.00011506,2]
[398596314,1765858246825,-500.0,0.00011506,2]
[398596315,1765858246834,-779.15,0.00011506,2]
[398596316,1765858246842,-500.0,0.00011506,2]
[398596317,1765858246852,-500.0,0.00011506,2]
[398596318,1765858246860,-500.0,0.00011506,2]
[398596319,1765858246869,-619.1,0.00011506,2]
[398596320,1765858246878,-500.0,0.00011506,2]
[398596321,1765858246887,-500.0,0.00011506,2]
[398596322,1765858246896,-500.0,0.00011506,2]
[398596323,1765858246905,-412.01,0.00011506,2]
[398596324,1765858246914,-500.0,0.00011506,2]
[398596325,1765858246923,-331.69,0.00011506,2]
[398596326,1765858246932,-500.0,0.00011506,2]
[398596327,1765858246942,-363.21,0.00011506,2]
[398596328,1765858246952,-507.87,0.00011506,2]
[398596329,1765858246962,-1758.6,0.00011506,2]
[398596330,1765858246974,-2122.58,0.00011506,2]
[398596331,1765858246983,-500.0,0.00011506,2]
[398596332,1765858246992,-278.12,0.00011506,2]
[398596333,1765858247001,-500.0,0.00011506,2]
[398596334,1765858247011,-500.0,0.00011506,2]
[398596335,1765858247019,-471.99,0.00011506,2]
[398596336,1765858247028,-500.0,0.00011506,2]
[398596337,1765858247037,-500.0,0.00011506,2]
[398596338,1765858247046,-500.0,0.00011506,2]
[398596339,1765858247055,-987.23,0.00011506,2]
[398596340,1765858247065,-500.0,0.00011506,2]
[398596341,1765858247075,-398.58,0.00011506,2]
[398596342,1765858247084,-2916.81,0.00011506,2]
[398596343,1765858247092,-7688.55,0.00011506,2]
[398596344,1765858247101,-1704.4,0.00011506,2]
[398596345,1765858247111,-500.0,0.00011506,2]
[398596346,1765858247120,-500.0,0.00011506,2]
[398596347,1765858247130,-500.0,0.00011506,2]
[398596348,1765858247139,-163.98,0.00011506,2]
[398596349,1765858247148,-500.0,0.00011506,2]
[398596350,1765858247157,-754.28,0.00011506,2]
[398596351,1765858247167,-500.0,0.00011506,2]
[398596352,1765858247176,-19522.16,0.00011506,2]
[398596353,1765858247186,-500.0,0.00011506,2]
[398596354,1765858247195,-1822.71,0.00011506,2]
[398596355,1765858247204,-500.0,0.00011506,2]
[398596356,1765858247213,-500.0,0.00011506,2]
[398596357,1765858247222,-500.0,0.00011506,2]
[398596358,1765858247231,-720.0,0.00011611,2]
[398596359,1765858247240,-500.0,0.00011614,2]
[398596360,1765858247249,-500.0,0.00011614,2]
[398596361,1765858247258,-510.30136876,0.00011614,2]
[398596362,1765858247267,-2773.56790519,0.00011614,2]
[398596363,1765858247276,-574.12855637,0.00011614,2]
[398596364,1765858247285,-151.0,0.000117,2]
[398596365,1765858247294,-186.31203546,0.0001178,2]
[398596366,1765858247303,-500.0,0.0001178,2]
[398596367,1765858247312,-500.0,0.0001178,2]
[398596368,1765858247323,-500.0,0.0001178,2]
[398596369,1765858247332,-500.0,0.0001178,2]
[398596370,1765858247341,-1023.62,0.0001178,2]
[398596371,1765858247350,-500.0,0.0001178,2]
[398596372,1765858247359,-500.0,0.0001178,2]
[398596373,1765858247371,-561.84,0.0001178,2]
[398596374,1765858247380,-1163.13,0.0001178,2]
[398596375,1765858247389,-500.0,0.0001178,2]
[398596376,1765858247398,-168.68,0.0001178,2]
[398596377,1765858247407,-500.82,0.0001178,2]
[398596378,1765858247416,-500.0,0.0001178,2]
[398596379,1765858247425,-500.0,0.0001178,2]
[398596380,1765858247434,-500.0,0.0001178,2]
[398596381,1765858247443,-1012.31,0.0001178,2]
[398596382,1765858247453,-155.94,0.0001178,2]
[398596383,1765858247462,-266.71,0.0001178,2]
[398596384,1765858247471,-500.0,0.0001178,2]
[398596385,1765858247480,-500.0,0.0001178,2]
[398596386,1765858247489,-500.0,0.0001178,2]
[398596387,1765858247499,-502.94322753,0.0001178,2]
[398596388,1765858247512,-500.0,0.0001178,2]
[398596389,1765858247521,-427.58,0.0001178,2]
[398596390,1765858247531,-500.0,0.0001178,2]
[398596391,1765858247539,-500.0,0.0001178,2]
[398596392,1765858247550,-500.0,0.0001178,2]
[398596393,1765858247559,-1010.67,0.0001178,2]
[398596394,1765858247568,-221.58820722,0.0001178,2]
[398596395,1765858247578,-500.0,0.0001178,2]
[398596396,1765858247591,-500.0,0.0001178,2]
[398596397,1765858247600,-6987.84,0.0001178,2]
[398596398,1765858247610,-500.0,0.0001178,2]
[398596399,1765858247621,-442.7,0.0001178,2]
[398596400,1765858247631,-1457.49,0.0001178,2]
[398596401,1765858247641,-500.0,0.0001178,2]
[398596402,1765858247650,-500.0,0.0001178,2]
[398596403,1765858247659,-500.0,0.0001178,2]
[398596404,1765858247668,-500.0,0.0001178,2]
[398596405,1765858247677,-1647.99,0.0001178,2]
[398596406,1765858247686,-385.98,0.0001178,2]
[398596407,1765858247695,-500.0,0.0001178,2]
[398596408,1765858247704,-558.09,0.0001178,2]
[398596409,1765858247713,-422.62,0.0001178,2]
[398596410,1765858247722,-1209.57,0.0001178,2]
[398596411,1765858247731,-913.75,0.0001178,2]
[398596412,1765858247740,-2083.05,0.0001178,2]
[398596413,1765858247749,-198.83,0.0001178,2]
[398596414,1765858247758,-500.0,0.0001178,2]
[398596415,1765858247767,-1615.34,0.0001178,2]
[398596416,1765858247776,-340.3,0.0001178,2]
[398596417,1765858247785,-646.34,0.0001178,2]
[398596418,1765858247795,-1745.47,0.0001178,2]
[398596419,1765858247804,-500.0,0.0001178,2]
[398596420,1765858247813,-500.0,0.0001178,2]
[398596421,1765858247822,-500.0,0.0001178,2]
[398596422,1765858247831,-2220.91,0.0001178,2]
[398596423,1765858247840,-500.0,0.0001178,2]
[398596424,1765858247849,-2239.83,0.0001178,2]
[398596425,1765858247859,-960.12,0.0001178,2]
[398596426,1765858247869,-500.0,0.0001178,2]
[398596427,1765858247877,-903.33,0.0001178,2]
[398596428,1765858247886,-421.66,0.0001178,2]
[398596429,1765858247895,-2133.64,0.0001178,2]
[398596430,1765858247904,-500.0,0.0001178,2]
[398596431,1765858247914,-520.85,0.0001178,2]
[398596432,1765858247923,-500.0,0.0001178,2]
[398596433,1765858247933,-500.0,0.0001178,2]
[398596434,1765858247942,-779.15,0.0001178,2]
[398596435,1765858247952,-226.92,0.0001178,2]
[398596436,1765858247961,-272.43,0.0001178,2]
[398596437,1765858247970,-500.0,0.0001178,2]
[398596438,1765858247979,-500.0,0.0001178,2]
[398596439,1765858247988,-619.1,0.0001178,2]
[398596440,1765858247998,-500.0,0.0001178,2]
[398596441,1765858248007,-500.0,0.0001178,2]
[398596442,1765858248018,-500.0,0.0001178,2]
[398596443,1765858248027,-500.0,0.0001178,2]
[398596444,1765858248037,-500.0,0.0001178,2]
[398596445,1765858248047,-1758.6,0.0001178,2]
[398596446,1765858248056,-2122.58,0.0001178,2]
[398596447,1765858248065,-500.0,0.0001178,2]
[398596448,1765858248075,-574.51,0.0001178,2]
[398596449,1765858248084,-174.34,0.0001178,2]
[398596450,1765858248094,-500.0,0.0001178,2]
[398596451,1765858248103,-500.0,0.0001178,2]
[398596452,1765858248112,-169.65,0.0001178,2]